[Event "MČR juniorů a juniorek v rapid šachu 2024"]
[Site "Hotel Fit Fun, Harrachov, Czech Republic"]
[Date "2024.09.22"]
[Round "9.14"]
[White "Hosova Sandra"]
[Black "Housa Vojtech"]
[Result "1-0"]
[TimeControl "20+5"]
[WhiteFideId "397717"]
[BlackFideId "23736364"]
[WhiteElo "1847"]
[BlackElo "1691"]

1. d4 {[%clk 00:20:07]} {[%emt 00:00:02]} Nf6 {[%clk 00:20:09]} {[%emt
00:00:01]} 2. Nf3 {[%clk 00:20:10]} {[%emt 00:00:02]} g6 {[%clk 00:20:13]}
{[%emt 00:00:02]} 3. Bf4 {[%clk 00:20:08]} {[%emt 00:00:07]} Bg7 {[%clk
00:20:15]} {[%emt 00:00:02]} 4. Nc3 {[%clk 00:20:10]} {[%emt 00:00:04]} O-O
{[%clk 00:20:15]} {[%emt 00:00:05]} 5. Qd2 {[%clk 00:20:03]} {[%emt 00:00:12]}
d6 {[%clk 00:20:13]} {[%emt 00:00:07]} 6. e4 {[%clk 00:19:56]} {[%emt
00:00:12]} Nfd7 {[%clk 00:19:46]} {[%emt 00:00:32]} 7. Be2 {[%clk 00:19:04]}
{[%emt 00:00:58]} e5 {[%clk 00:19:28]} {[%emt 00:00:23]} 8. dxe5 {[%clk
00:18:45]} {[%emt 00:00:24]} Nxe5 {[%clk 00:19:28]} {[%emt 00:00:05]} 9. O-O
{[%clk 00:17:56]} {[%emt 00:00:54]} Nbc6 {[%clk 00:19:03]} {[%emt 00:00:30]} 10.
Rad1 {[%clk 00:17:43]} {[%emt 00:00:17]} Be6 {[%clk 00:17:43]} {[%emt
00:01:25]} 11. Nxe5 {[%clk 00:17:10]} {[%emt 00:00:38]} Nxe5 {[%clk 00:17:25]}
{[%emt 00:00:24]} 12. Bh6 {[%clk 00:16:01]} {[%emt 00:01:14]} Re8 {[%clk
00:15:15]} {[%emt 00:02:15]} 13. Bxg7 {[%clk 00:15:58]} {[%emt 00:00:08]} Kxg7
{[%clk 00:15:18]} {[%emt 00:00:02]} 14. f4 {[%clk 00:15:02]} {[%emt 00:01:01]}
Nc6 {[%clk 00:14:11]} {[%emt 00:01:12]} 15. f5 {[%clk 00:14:51]} {[%emt
00:00:15]} Bd7 {[%clk 00:14:05]} {[%emt 00:00:12]} 16. f6+ {[%clk 00:14:05]}
{[%emt 00:00:52]} Kh8 {[%emt 00:00:18]} 17. Nd5 {[%clk 00:12:31]} {[%emt
00:01:37]} Rxe4 {[%clk 00:12:52]} {[%emt 00:01:06]} 18. Bd3 {[%clk 00:11:09]}
{[%emt 00:01:28]} Re6 {[%clk 00:11:55]} {[%emt 00:01:01]} 19. Bxg6 {[%clk
00:08:25]} {[%emt 00:02:49]} fxg6 {[%emt 00:00:50]} 20. f7 {[%clk 00:08:20]}
{[%emt 00:00:08]} Qf8 {[%clk 00:09:45]} {[%emt 00:01:32]} 21. Nxc7 {[%clk
00:08:16]} {[%emt 00:00:10]} Rd8 {[%clk 00:09:23]} {[%emt 00:00:27]} 22. Nxe6
{[%clk 00:06:45]} {[%emt 00:01:35]} Bxe6 {[%clk 00:09:25]} {[%emt 00:00:03]} 23.
Qf4 {[%clk 00:06:29]} {[%emt 00:00:21]} Kg7 {[%clk 00:06:42]} {[%emt 00:02:48]}
24. Qf6+ {[%clk 00:06:30]} {[%emt 00:00:03]} Kh6 {[%clk 00:06:46]} {[%emt
00:00:02]} 25. Rf4 {[%clk 00:05:40]} {[%emt 00:00:53]} 1-0



[ePGN "0.1;DGT LiveChess/2.2.6"]

[Event "MČR juniorů a juniorek v rapid šachu 2024"]
[Site "Hotel Fit Fun, Harrachov, Czech Republic"]
[Date "2024.09.22"]
[Round "9.15"]
[White "Mrazek Adam"]
[Black "Sadil Antonin"]
[Result "1/2-1/2"]
[TimeControl "20+5"]
[WhiteFideId "23725010"]
[BlackFideId "23735597"]
[WhiteElo "1830"]
[BlackElo "1784"]

1. c4 {[%clk 00:20:08]} {[%emt 00:00:02]} Nf6 {[%clk 00:20:09]} {[%emt
00:00:02]} 2. g3 {[%clk 00:20:12]} d5 {[%clk 00:20:06]} {[%emt 00:00:07]} 3.
Bg2 {[%clk 00:20:04]} {[%emt 00:00:13]} c6 {[%clk 00:20:03]} {[%emt 00:00:09]}
4. Nf3 {[%clk 00:20:03]} {[%emt 00:00:06]} g6 {[%clk 00:20:05]} {[%emt
00:00:02]} 5. b3 {[%clk 00:19:54]} {[%emt 00:00:14]} Bg7 {[%clk 00:20:06]}
{[%emt 00:00:04]} 6. Bb2 {[%clk 00:19:59]} O-O {[%clk 00:20:06]} {[%emt
00:00:06]} 7. O-O {[%clk 00:20:02]} {[%emt 00:00:02]} dxc4 {[%clk 00:19:38]}
{[%emt 00:00:33]} 8. bxc4 {[%clk 00:20:07]} {[%emt 00:00:01]} Re8 {[%clk
00:18:57]} {[%emt 00:00:45]} 9. d3 {[%clk 00:19:51]} {[%emt 00:00:21]} Bg4
{[%clk 00:17:54]} {[%emt 00:01:08]} 10. Nbd2 {[%clk 00:19:46]} {[%emt
00:00:09]} Nbd7 {[%clk 00:16:54]} {[%emt 00:01:05]} 11. Rb1 {[%clk 00:16:14]}
{[%emt 00:03:38]} Qc7 {[%clk 00:16:26]} {[%emt 00:00:32]} 12. h3 {[%clk
00:16:09]} {[%emt 00:00:11]} Bxf3 {[%clk 00:16:23]} {[%emt 00:00:08]} 13. Bxf3
{[%clk 00:15:31]} {[%emt 00:00:42]} Rad8 {[%clk 00:15:06]} {[%emt 00:01:22]} 14.
a4 {[%clk 00:12:12]} b6 {[%clk 00:14:28]} {[%emt 00:04:07]} 15. Qc2 {[%clk
00:10:01]} Nc5 {[%clk 00:12:58]} {[%emt 00:03:51]} 16. Bc3 {[%clk 00:06:11]} e5
{[%clk 00:12:44]} {[%emt 00:04:14]} 17. Bb4 {[%clk 00:04:38]} Ne6 {[%clk
00:12:39]} {[%emt 00:01:47]} 18. Rfc1 {[%clk 00:03:48]} Nd4 {[%emt 00:01:20]}
19. Qa2 Nxf3+ {[%clk 00:11:55]} {[%emt 00:00:31]} 20. Nxf3 {[%clk 00:03:55]} e4
{[%clk 00:11:24]} {[%emt 00:00:38]} 21. dxe4 {[%clk 00:03:50]} Nxe4 {[%clk
00:11:09]} {[%emt 00:00:30]} 22. Kg2 {[%clk 00:03:40]} c5 {[%clk 00:10:25]}
{[%emt 00:01:04]} 23. Be1 {[%clk 00:03:36]} Qc6 {[%clk 00:09:42]} {[%emt
00:00:56]} 24. Rd1 {[%clk 00:03:17]} Nc3 {[%clk 00:08:57]} {[%emt 00:01:15]} 25.
Bxc3 {[%clk 00:03:15]} Bxc3 {[%clk 00:08:59]} {[%emt 00:00:09]} 26. Qc2 {[%clk
00:03:05]} Bg7 {[%clk 00:08:34]} {[%emt 00:00:44]} 27. Rxd8 {[%clk 00:02:46]}
Rxd8 {[%clk 00:08:17]} {[%emt 00:00:27]} 28. Rd1 Rxd1 {[%clk 00:08:17]} {[%emt
00:00:26]} 29. Qxd1 {[%clk 00:02:55]} Qe4 {[%clk 00:07:39]} {[%emt 00:00:41]}
30. Qd8+ {[%clk 00:01:04]} Bf8 {[%clk 00:07:42]} {[%emt 00:02:00]} 31. Qd3
{[%clk 00:01:08]} Qc6 {[%clk 00:07:33]} {[%emt 00:00:15]} 32. Qd1 {[%clk
00:00:55]} a6 {[%clk 00:07:27]} {[%emt 00:00:30]} 33. Kg1 {[%clk 00:00:55]} Bd6
{[%clk 00:07:19]} {[%emt 00:00:18]} 34. Qb3 {[%clk 00:00:32]} Bc7 {[%clk
00:07:09]} {[%emt 00:00:43]} 35. Qd1 {[%emt 00:00:49]} b5 {[%clk 00:06:56]} 36.
axb5 {[%clk 00:00:10]} {[%emt 00:00:02]} axb5 {[%clk 00:06:59]} {[%emt
00:00:02]} 37. cxb5 {[%clk 00:00:08]} {[%emt 00:00:06]} Qxb5 {[%clk 00:06:59]}
{[%emt 00:00:04]} 38. Qc2 {[%clk 00:00:13]} Qb4 {[%clk 00:06:05]} {[%emt
00:00:59]} 39. Nd2 {[%clk 00:00:09]} {[%emt 00:00:09]} Qb5 {[%clk 00:05:00]}
{[%emt 00:01:08]} 40. Qc4 {[%clk 00:00:13]} {[%emt 00:00:03]} Qxc4 {[%clk
00:03:59]} {[%emt 00:01:05]} 41. Nxc4 {[%clk 00:00:18]} f5 {[%clk 00:03:59]}
{[%emt 00:00:05]} 42. Kf1 {[%clk 00:00:08]} {[%emt 00:00:15]} Kf7 {[%clk
00:04:02]} {[%emt 00:00:01]} 43. Ke1 {[%clk 00:00:10]} {[%emt 00:00:03]} Ke6
{[%clk 00:04:05]} {[%emt 00:00:01]} 44. Kd2 {[%clk 00:00:13]} {[%emt 00:00:02]}
Kd5 {[%clk 00:04:02]} {[%emt 00:00:08]} 45. Kd3 {[%clk 00:00:11]} {[%emt
00:00:08]} Bd8 {[%clk 00:02:20]} {[%emt 00:01:45]} 46. Ne3+ {[%clk 00:00:15]}
{[%emt 00:00:02]} Ke5 {[%clk 00:02:13]} {[%emt 00:00:12]} 47. Kc4 {[%clk
00:00:20]} Be7 {[%clk 00:01:57]} {[%emt 00:00:21]} 48. Nd5 {[%clk 00:00:15]}
{[%emt 00:00:11]} Bf8 {[%clk 00:01:45]} {[%emt 00:00:16]} 49. Nc3 {[%clk
00:00:10]} {[%emt 00:00:10]} Kd6 {[%clk 00:01:28]} {[%emt 00:00:22]} 50. Na4
{[%clk 00:00:08]} {[%emt 00:00:08]} Kc6 {[%clk 00:01:31]} {[%emt 00:00:01]} 51.
Nb2 {[%clk 00:00:12]} {[%emt 00:00:01]} Bg7 {[%clk 00:01:27]} {[%emt 00:00:09]}
52. Nd3 {[%clk 00:00:16]} Bf8 {[%clk 00:01:25]} {[%emt 00:00:09]} 53. Ne5+
{[%clk 00:00:12]} {[%emt 00:00:09]} Kd6 {[%clk 00:01:23]} {[%emt 00:00:06]} 54.
Nf7+ {[%clk 00:00:15]} {[%emt 00:00:03]} Ke7 {[%clk 00:01:14]} {[%emt
00:00:14]} 55. Ng5 {[%clk 00:00:17]} {[%emt 00:00:04]} h6 {[%clk 00:01:12]}
{[%emt 00:00:07]} 56. Nf3 {[%clk 00:00:13]} {[%emt 00:00:09]} Ke6 {[%clk
00:01:14]} {[%emt 00:00:03]} 57. Nd2 {[%clk 00:00:11]} {[%emt 00:00:07]} Kd6
{[%clk 00:01:08]} {[%emt 00:00:11]} 58. Nb3 {[%clk 00:00:15]} {[%emt 00:00:02]}
Kc6 {[%clk 00:01:11]} {[%emt 00:00:02]} 59. Nc1 {[%clk 00:00:17]} {[%emt
00:00:03]} Bg7 {[%clk 00:01:09]} {[%emt 00:00:07]} 60. Nd3 {[%clk 00:00:21]}
{[%emt 00:00:01]} g5 {[%clk 00:00:42]} {[%emt 00:00:32]} 61. Nxc5 {[%clk
00:00:22]} {[%emt 00:00:04]} f4 {[%clk 00:00:42]} {[%emt 00:00:04]} 62. gxf4
{[%clk 00:00:16]} {[%emt 00:00:11]} gxf4 {[%clk 00:00:44]} {[%emt 00:00:03]} 63.
Ne4 {[%clk 00:00:12]} {[%emt 00:00:09]} Be5 {[%clk 00:00:28]} {[%emt 00:00:21]}
64. Nd2 {[%clk 00:00:11]} {[%emt 00:00:06]} Bc7 {[%clk 00:00:27]} {[%emt
00:00:06]} 65. Ne4 {[%clk 00:00:06]} {[%emt 00:00:10]} Be5 {[%clk 00:00:23]}
{[%emt 00:00:08]} 66. Nd2 {[%clk 00:00:08]} {[%emt 00:00:04]} Bc7 {[%clk
00:00:27]} {[%emt 00:00:01]} 67. Nb3 {[%clk 00:00:08]} {[%emt 00:00:05]} Bb6
{[%clk 00:00:27]} {[%emt 00:00:05]} 68. Nd4+ {[%clk 00:00:08]} {[%emt
00:00:05]} Kd6 {[%clk 00:00:26]} {[%emt 00:00:05]} 69. f3 {[%emt 00:00:10]} Ke5
{[%clk 00:00:24]} {[%emt 00:00:05]} 70. Nc6+ {[%clk 00:00:08]} {[%emt
00:00:03]} Kf5 {[%clk 00:00:25]} {[%emt 00:00:03]} 71. Kd5 {[%clk 00:00:11]}
{[%emt 00:00:04]} Be3 {[%clk 00:00:24]} {[%emt 00:00:05]} 72. Ne7 {[%clk
00:00:12]} {[%emt 00:00:05]} Kg5 {[%clk 00:00:27]} {[%emt 00:00:02]} 73. Ke4
{[%clk 00:00:11]} {[%emt 00:00:06]} Kh4 {[%emt 00:00:13]} 74. Nf5 Kxh3 {[%clk
00:00:17]} {[%emt 00:00:06]} 75. Nxh6 {[%clk 00:00:09]} {[%emt 00:00:12]} Kg2
{[%clk 00:00:11]} {[%emt 00:00:11]} 76. Ng4 {[%clk 00:00:11]} {[%emt 00:00:03]}
Bc1 {[%clk 00:00:13]} {[%emt 00:00:02]} 77. Kd3 {[%clk 00:00:08]} {[%emt
00:00:09]} Kf1 {[%clk 00:00:08]} {[%emt 00:00:10]} 78. Ne5 {[%clk 00:00:08]}
{[%emt 00:00:06]} Kf2 {[%clk 00:00:08]} {[%emt 00:00:04]} 79. Nc4 {[%clk
00:00:08]} {[%emt 00:00:06]} Kf1 {[%clk 00:00:09]} {[%emt 00:00:03]} 80. Na5
{[%clk 00:00:08]} {[%emt 00:00:06]} Kf2 {[%clk 00:00:10]} {[%emt 00:00:04]} 81.
Nb3 {[%clk 00:00:13]} Be3 {[%clk 00:00:13]} {[%emt 00:00:02]} 82. Na1 {[%clk
00:00:10]} {[%emt 00:00:08]} Kf1 {[%clk 00:00:16]} {[%emt 00:00:01]} 83. Nc2
{[%clk 00:00:14]} Bc1 {[%clk 00:00:19]} {[%emt 00:00:02]} 84. Nd4 {[%clk
00:00:14]} {[%emt 00:00:04]} Kf2 {[%clk 00:00:21]} {[%emt 00:00:03]} 85. Nf5
{[%clk 00:00:10]} {[%emt 00:00:11]} Kf1 {[%clk 00:00:20]} {[%emt 00:00:05]} 86.
Nh4 {[%clk 00:00:08]} {[%emt 00:00:07]} Kf2 {[%clk 00:00:23]} {[%emt 00:00:03]}
87. Ng6 {[%clk 00:00:07]} {[%emt 00:00:06]} Kg3 {[%clk 00:00:25]} {[%emt
00:00:03]} 88. Ke4 {[%clk 00:00:10]} {[%emt 00:00:03]} Bd2 {[%clk 00:00:28]}
{[%emt 00:00:01]} 89. Ne7 {[%clk 00:00:09]} {[%emt 00:00:06]} Bc1 {[%clk
00:00:31]} {[%emt 00:00:02]} 90. Nf5+ {[%clk 00:00:09]} {[%emt 00:00:06]} Kf2
{[%clk 00:00:32]} {[%emt 00:00:02]} 91. Kd3 {[%clk 00:00:09]} {[%emt 00:00:06]}
Kf1 {[%clk 00:00:34]} {[%emt 00:00:03]} 92. Ne7 {[%clk 00:00:06]} {[%emt
00:00:09]} Kf2 {[%clk 00:00:37]} {[%emt 00:00:01]} 93. Nd5 {[%clk 00:00:10]}
{[%emt 00:00:02]} Kg3 {[%clk 00:00:39]} {[%emt 00:00:02]} 94. e3 {[%emt
00:00:10]} fxe3 {[%clk 00:00:32]} {[%emt 00:00:11]} 95. Nxe3 {[%clk 00:00:06]}
{[%emt 00:00:05]} Kxf3 {[%clk 00:00:35]} {[%emt 00:00:01]} 96. Kc2 {[%clk
00:00:10]} {[%emt 00:00:02]} Bxe3 {[%emt 00:00:02]} 1/2-1/2



[ePGN "0.1;DGT LiveChess/2.2.6"]

[Event "MČR juniorů a juniorek v rapid šachu 2024"]
[Site "Hotel Fit Fun, Harrachov, Czech Republic"]
[Date "2024.09.22"]
[Round "9.16"]
[White "Bezdek Tomas"]
[Black "Nespurek Jakub"]
[Result "1-0"]
[TimeControl "20+5"]
[WhiteFideId "23733551"]
[BlackFideId "391816"]
[WhiteElo "1973"]
[BlackElo "1817"]

1. h3 {[%clk 00:20:05]} {[%emt 00:37:25]} g6 {[%clk 00:20:07]} {[%emt
00:00:09]} 2. d4 {[%clk 00:20:08]} {[%emt 00:00:02]} Bg7 {[%clk 00:20:11]}
{[%emt 00:00:01]} 3. e4 {[%clk 00:20:12]} {[%emt 00:00:01]} d6 {[%clk
00:20:15]} 4. Nf3 {[%clk 00:20:15]} {[%emt 00:00:02]} Nd7 {[%clk 00:20:18]}
{[%emt 00:00:02]} 5. c4 {[%clk 00:20:17]} {[%emt 00:00:03]} c5 {[%clk
00:20:22]} 6. Be3 {[%clk 00:20:15]} {[%emt 00:00:06]} cxd4 {[%clk 00:20:25]}
{[%emt 00:00:02]} 7. Nxd4 {[%clk 00:20:19]} {[%emt 00:00:01]} Ngf6 {[%clk
00:20:25]} {[%emt 00:00:04]} 8. Nc3 {[%clk 00:20:23]} O-O {[%clk 00:20:13]}
{[%emt 00:00:17]} 9. Be2 {[%clk 00:20:22]} {[%emt 00:00:06]} Nc5 {[%clk
00:19:52]} {[%emt 00:00:26]} 10. f3 {[%clk 00:20:26]} Nh5 {[%clk 00:18:50]}
{[%emt 00:01:07]} 11. O-O {[%clk 00:20:06]} {[%emt 00:00:26]} Ng3 {[%clk
00:18:48]} {[%emt 00:00:07]} 12. Re1 {[%clk 00:20:02]} {[%emt 00:00:07]} Nxe2+
{[%clk 00:18:06]} {[%emt 00:00:48]} 13. Qxe2 {[%clk 00:20:01]} {[%emt
00:00:06]} Ne6 {[%clk 00:17:59]} {[%emt 00:00:13]} 14. Nxe6 {[%clk 00:18:42]}
{[%emt 00:01:24]} Bxe6 {[%clk 00:18:00]} {[%emt 00:00:04]} 15. Nd5 {[%clk
00:18:45]} Bxd5 {[%clk 00:14:45]} {[%emt 00:03:20]} 16. exd5 {[%clk 00:18:48]}
{[%emt 00:00:03]} Qd7 {[%clk 00:14:05]} {[%emt 00:00:44]} 17. Rac1 {[%clk
00:18:46]} {[%emt 00:00:05]} b6 {[%clk 00:11:50]} {[%emt 00:02:23]} 18. b3
{[%clk 00:18:44]} {[%emt 00:00:07]} e5 {[%clk 00:07:55]} {[%emt 00:04:00]} 19.
dxe6 {[%clk 00:18:12]} {[%emt 00:00:37]} fxe6 {[%clk 00:07:58]} {[%emt
00:00:02]} 20. Rcd1 {[%clk 00:18:08]} {[%emt 00:00:08]} Bc3 {[%clk 00:06:00]}
{[%emt 00:02:00]} 21. Bd2 {[%clk 00:18:00]} {[%emt 00:00:15]} Bd4+ {[%clk
00:05:47]} {[%emt 00:00:19]} 22. Kh1 {[%clk 00:18:02]} {[%emt 00:00:02]} e5
{[%clk 00:03:38]} {[%emt 00:02:15]} 23. Qe4 {[%clk 00:18:05]} {[%emt 00:00:01]}
Rac8 {[%clk 00:01:50]} {[%emt 00:01:53]} 24. Qd5+ {[%clk 00:17:40]} {[%emt
00:00:31]} Rf7 {[%clk 00:01:26]} {[%emt 00:00:29]} 25. Bb4 {[%clk 00:17:09]}
{[%emt 00:00:33]} Kg7 {[%clk 00:00:32]} {[%emt 00:01:03]} 26. Re4 {[%clk
00:14:46]} {[%emt 00:02:26]} Rxf3 {[%clk 00:00:19]} {[%emt 00:00:20]} 27. Rexd4
{[%clk 00:13:43]} {[%emt 00:01:08]} Rxh3+ {[%clk 00:00:12]} {[%emt 00:00:11]}
28. Kg1 {[%clk 00:13:46]} exd4 {[%clk 00:00:12]} {[%emt 00:00:05]} 29. Qxd4+
{[%clk 00:13:43]} {[%emt 00:00:07]} Kg8 {[%clk 00:00:10]} {[%emt 00:00:07]} 30.
Qd5+ {[%clk 00:13:36]} {[%emt 00:00:12]} Kg7 {[%clk 00:00:06]} {[%emt
00:00:10]} 31. Bxd6 {[%clk 00:13:04]} {[%emt 00:00:35]} Qg4 {[%clk 00:00:09]}
{[%emt 00:00:04]} 32. Qe5+ {[%clk 00:12:23]} {[%emt 00:00:44]} Kh6 {[%clk
00:00:10]} {[%emt 00:00:06]} 33. Qf4+ {[%clk 00:12:24]} {[%emt 00:00:04]} Qxf4
{[%clk 00:00:08]} {[%emt 00:00:08]} 34. Bxf4+ {[%clk 00:12:23]} {[%emt
00:00:05]} Kh5 {[%clk 00:00:12]} 35. gxh3 {[%clk 00:12:26]} {[%emt 00:00:02]}
Rf8 {[%clk 00:00:14]} {[%emt 00:00:04]} 36. Bg3 {[%clk 00:12:09]} {[%emt
00:00:21]} Rf3 {[%clk 00:00:15]} {[%emt 00:00:03]} 37. Kg2 {[%emt 00:00:08]}
Rc3 38. Rd2 {[%clk 00:12:08]} {[%emt 00:00:05]} g5 {[%clk 00:00:17]} {[%emt
00:00:07]} 39. Bb8 {[%clk 00:11:45]} {[%emt 00:00:28]} a6 {[%clk 00:00:19]}
{[%emt 00:00:04]} 40. Ba7 {[%clk 00:11:45]} {[%emt 00:00:04]} b5 {[%clk
00:00:22]} {[%emt 00:00:02]} 41. c5 {[%clk 00:11:45]} {[%emt 00:00:05]} g4
{[%clk 00:00:18]} {[%emt 00:00:11]} 42. hxg4+ {[%clk 00:11:48]} Kxg4 {[%clk
00:00:21]} {[%emt 00:00:02]} 43. Rd4+ {[%clk 00:11:52]} Kf5 {[%clk 00:00:23]}
{[%emt 00:00:03]} 44. Bb6 {[%clk 00:11:44]} {[%emt 00:00:14]} Ke5 {[%clk
00:00:17]} {[%emt 00:00:11]} 45. Rh4 {[%clk 00:11:46]} {[%emt 00:00:02]} Rc2+
{[%clk 00:00:19]} {[%emt 00:00:05]} 46. Kg3 {[%clk 00:11:49]} a5 {[%clk
00:00:21]} {[%emt 00:00:03]} 47. Rxh7 {[%clk 00:11:32]} {[%emt 00:00:22]} Rxa2
{[%clk 00:00:16]} {[%emt 00:00:11]} 48. c6 {[%clk 00:11:36]} {[%emt 00:00:02]}
Kd6 {[%clk 00:00:17]} {[%emt 00:00:03]} 49. c7 {[%clk 00:11:39]} {[%emt
00:00:01]} Rc2 {[%clk 00:00:21]} {[%emt 00:00:02]} 50. Bxa5 {[%clk 00:11:35]}
{[%emt 00:00:10]} Rc1 {[%clk 00:00:15]} {[%emt 00:00:10]} 51. Rh8 {[%clk
00:11:30]} {[%emt 00:00:09]} Kd7 {[%clk 00:00:19]} {[%emt 00:00:03]} 52. Rd8+
{[%clk 00:11:32]} {[%emt 00:00:03]} 1-0



[ePGN "0.1;DGT LiveChess/2.2.6"]

[Event "MČR juniorů a juniorek v rapid šachu 2024"]
[Site "Hotel Fit Fun, Harrachov, Czech Republic"]
[Date "2024.09.22"]
[Round "9.17"]
[White "Stastna Martina"]
[Black "Zadrapova Amalie"]
[Result "1-0"]
[TimeControl "20+5"]
[WhiteFideId "385123"]
[BlackFideId "23710276"]
[WhiteElo "1801"]
[BlackElo "1891"]

1. e4 {[%clk 00:20:09]} c5 {[%clk 00:20:09]} {[%emt 00:00:02]} 2. Nf3 {[%clk
00:20:12]} {[%emt 00:00:02]} d6 {[%clk 00:20:12]} {[%emt 00:00:01]} 3. Bb5+
{[%clk 00:20:12]} {[%emt 00:00:05]} Nd7 {[%clk 00:20:16]} {[%emt 00:00:02]} 4.
c3 {[%clk 00:20:11]} {[%emt 00:00:06]} Ngf6 {[%clk 00:20:17]} {[%emt 00:00:04]}
5. d3 {[%clk 00:20:12]} {[%emt 00:00:04]} g6 {[%clk 00:20:16]} {[%emt
00:00:06]} 6. O-O {[%clk 00:20:13]} {[%emt 00:00:03]} Bg7 {[%clk 00:20:19]}
{[%emt 00:00:02]} 7. e5 {[%clk 00:19:30]} {[%emt 00:00:48]} dxe5 {[%clk
00:19:53]} {[%emt 00:00:31]} 8. Nxe5 {[%clk 00:19:33]} {[%emt 00:00:01]} O-O
{[%clk 00:19:50]} {[%emt 00:00:09]} 9. Nxd7 {[%clk 00:19:32]} {[%emt 00:00:06]}
Nxd7 {[%clk 00:19:50]} {[%emt 00:00:05]} 10. Be3 {[%clk 00:19:16]} {[%emt
00:00:22]} Qc7 {[%clk 00:19:22]} {[%emt 00:00:33]} 11. d4 {[%clk 00:18:38]}
{[%emt 00:00:43]} cxd4 {[%clk 00:18:37]} {[%emt 00:00:51]} 12. Bxd4 {[%clk
00:18:40]} {[%emt 00:00:02]} e5 {[%clk 00:18:37]} {[%emt 00:00:05]} 13. Be3
{[%clk 00:18:30]} {[%emt 00:00:14]} Nc5 {[%clk 00:18:17]} {[%emt 00:00:25]} 14.
Nd2 {[%clk 00:17:21]} {[%emt 00:01:13]} a6 {[%clk 00:18:15]} {[%emt 00:00:08]}
15. Be2 {[%clk 00:17:09]} {[%emt 00:00:16]} Rd8 {[%clk 00:17:46]} {[%emt
00:00:34]} 16. Qc1 {[%clk 00:14:51]} {[%emt 00:02:22]} Be6 {[%clk 00:15:02]}
{[%emt 00:02:50]} 17. Rd1 {[%clk 00:13:09]} {[%emt 00:01:46]} f5 {[%clk
00:13:42]} {[%emt 00:01:25]} 18. Bxc5 {[%clk 00:11:51]} {[%emt 00:01:23]} Qxc5
{[%clk 00:13:19]} {[%emt 00:00:28]} 19. Nf1 {[%clk 00:11:35]} {[%emt 00:00:20]}
e4 {[%clk 00:12:46]} {[%emt 00:00:38]} 20. Qe3 {[%clk 00:10:14]} {[%emt
00:01:26]} Qc7 {[%clk 00:11:16]} {[%emt 00:01:36]} 21. f3 {[%clk 00:09:13]}
{[%emt 00:01:05]} Bd5 {[%clk 00:10:50]} {[%emt 00:00:32]} 22. fxe4 {[%clk
00:08:46]} {[%emt 00:00:32]} Bxe4 {[%clk 00:10:24]} {[%emt 00:00:31]} 23. Bf3
{[%clk 00:08:46]} {[%emt 00:00:04]} Re8 {[%clk 00:10:07]} {[%emt 00:00:23]} 24.
Qf2 {[%clk 00:07:54]} {[%emt 00:00:57]} Bf8 {[%clk 00:09:10]} {[%emt 00:01:02]}
25. Kh1 {[%clk 00:07:23]} {[%emt 00:00:35]} Bc5 {[%clk 00:07:59]} {[%emt
00:01:16]} 26. Qe2 {[%clk 00:07:20]} {[%emt 00:00:07]} b5 {[%clk 00:07:01]}
{[%emt 00:01:04]} 27. Bxe4 {[%clk 00:06:56]} {[%emt 00:00:30]} Rxe4 {[%clk
00:06:27]} {[%emt 00:00:40]} 28. Qf3 {[%clk 00:06:52]} {[%emt 00:00:06]} Rae8
{[%clk 00:06:19]} {[%emt 00:00:15]} 29. Nd2 {[%clk 00:05:34]} {[%emt 00:01:23]}
Re2 {[%clk 00:05:28]} {[%emt 00:00:56]} 30. Qd5+ {[%clk 00:05:30]} {[%emt
00:00:08]} Kh8 {[%clk 00:05:23]} {[%emt 00:00:10]} 31. Nb3 {[%clk 00:04:48]}
{[%emt 00:00:47]} Bf8 {[%clk 00:04:01]} {[%emt 00:01:28]} 32. Nd4 {[%clk
00:04:28]} {[%emt 00:00:25]} R2e5 {[%clk 00:03:32]} {[%emt 00:00:33]} 33. Qf3
{[%clk 00:04:03]} {[%emt 00:00:30]} Bd6 {[%clk 00:03:09]} {[%emt 00:00:29]} 34.
Qc6 {[%clk 00:03:32]} {[%emt 00:00:36]} Qb8 {[%clk 00:02:28]} {[%emt 00:00:45]}
35. Nf3 {[%clk 00:03:21]} {[%emt 00:00:16]} R5e6 {[%clk 00:02:21]} {[%emt
00:00:12]} 36. Ng5 {[%clk 00:02:36]} {[%emt 00:00:50]} R6e7 {[%clk 00:01:59]}
{[%emt 00:00:27]} 37. h3 {[%clk 00:02:15]} {[%emt 00:00:26]} Bf4 {[%clk
00:01:18]} {[%emt 00:00:47]} 38. Nf3 {[%clk 00:01:41]} {[%emt 00:00:39]} Re6
{[%clk 00:00:26]} {[%emt 00:00:57]} 39. Qc5 {[%clk 00:01:05]} {[%emt 00:00:41]}
Bh6 {[%clk 00:00:19]} {[%emt 00:00:13]} 40. Rd7 {[%clk 00:00:54]} {[%emt
00:00:15]} Bg7 {[%clk 00:00:09]} {[%emt 00:00:16]} 41. Rad1 {[%clk 00:00:58]}
{[%emt 00:00:01]} Qc8 {[%clk 00:00:10]} {[%emt 00:00:04]} 42. Qa7 {[%clk
00:00:57]} {[%emt 00:00:07]} Rg8 {[%clk 00:00:10]} {[%emt 00:00:05]} 43. Ng5
{[%clk 00:00:54]} {[%emt 00:00:07]} Rf6 {[%clk 00:00:11]} {[%emt 00:00:03]} 44.
Nf7+ {[%clk 00:00:51]} {[%emt 00:00:08]} Rxf7 {[%clk 00:00:15]} {[%emt
00:00:01]} 45. Rxf7 {[%clk 00:00:55]} {[%emt 00:00:01]} Qe6 {[%clk 00:00:09]}
{[%emt 00:00:11]} 46. Rdd7 {[%clk 00:00:43]} {[%emt 00:00:17]} Qe1+ {[%clk
00:00:11]} {[%emt 00:00:02]} 47. Qg1 {[%clk 00:00:46]} {[%emt 00:00:02]} Qe8
{[%clk 00:00:10]} {[%emt 00:00:06]} 48. Rde7 {[%clk 00:00:25]} {[%emt
00:00:26]} Qd8 {[%clk 00:00:10]} {[%emt 00:00:06]} 49. Qd4 {[%clk 00:00:22]}
{[%emt 00:00:07]} 1-0



[ePGN "0.1;DGT LiveChess/2.2.6"]